Cogmind - Beta 10.2 @@@ ROGUE MODE // 2021.06.21 @ 20:49:42 Player: darktar Result: Destroyed by G-34 Mercenary with Small Laser Performance ------------- Evolutions (1) 500 Regions Visited (3) 600 Robots Destroyed (9) 45 Value Destroyed (164) 164 Prototype IDs (0) 0 Alien Tech Used (0) 0 Bonus (0) 0 TOTAL SCORE: 1309 Bonus ------- None Cogmind --------- Core Integrity 0/400 Matter 269/300 Energy 100/100 System Corruption 0% Temperature Cool (15) Movement Core (350) Ox6 Location -9/Materials Parts ------- > --- POWER (1) -------- (None) > --- PROPULSION (3) --- (None) > --- UTILITY (3) ------ Small Storage Unit Large Storage Unit > --- WEAPON (2) ------- (None) > --- INVENTORY (12) --- Ion Engine Light Ion Engine Light Ion Engine Light Treads Peak State ------------ > --- POWER ------------ Ion Engine > --- PROPULSION ------- Wheel Wheel > --- UTILITY ---------- Small Storage Unit Tractor Beam > --- WEAPON ----------- EM Pulse Gun Light Assault Rifle > --- INVENTORY -------- Light Ion Engine Light Treads Light Treads Medium Laser [Rating: 7] Favorites ----------- Power Ion Engine Engine Ion Engine Propulsion Wheel Treads Light Treads Wheel Wheel Utility Small Storage Unit Device Tractor Beam Storage Small Storage Unit Weapon Light Assault Rifle Energy Gun EM Pulse Gun Ballistic Gun Light Assault Rifle Launcher Grenade Launcher Special Melee Weapon Datajack Build | -11 -10 -10 -9 ------- Run | Scr Mat Min Mat Slots Evolved 2 | . . . 2 Power . | . . . . Propulsion 1 | . . . 1 Utility 1 | . . . 1 Weapon . | . . . . Parts Attached 16 | 6 2 2 6 Power 2 | 1 . 1 . Engine 2 | 1 . 1 . Core . | . . . . Reactor . | . . . . Propulsion 3 | 2 . . 1 Treads 1 | . . . 1 Leg . | . . . . Wheel 2 | 2 . . . Hover . | . . . . Flight . | . . . . Utility 3 | 1 2 . . Device 1 | . 1 . . Storage 2 | 1 1 . . Processor . | . . . . Hackware . | . . . . Protection . | . . . . Artifact . | . . . . Weapon 8 | 2 . 1 5 Energy Gun 3 | 1 . . 2 Energy Cannon . | . . . . Ballistic Gun 3 | 1 . 1 1 Ballistic Cannon . | . . . . Launcher 1 | . . . 1 Special Weapon . | . . . . Impact Weapon . | . . . . Slashing Weapon . | . . . . Piercing Weapon . | . . . . Special Melee Weapon 1 | . . . 1 Unidentified Prototypes . | . . . . Parts Lost 10 | . . . 10 Power 1 | . . . 1 Propulsion 3 | . . . 3 Utility . | . . . . Weapon 6 | . . . 6 Highest Loss Streak 10 | . . . 10 Average Slot Usage (%) 85 | . 98 100 57 Engine 11 | . 14 14 6 Wheel 23 | . 28 28 12 Device 3 | . 7 . . Storage 21 | . 19 28 22 Energy Gun 11 | . 14 14 6 Ballistic Gun 11 | . 14 14 6 Naked Turns . | . . . . Heaviest Build 28 | 12 28 28 26 Greatest Support 20 | 20 20 20 20 Greatest Overweight (x) 1 | 1 1 1 1 Average Overweight (x) . | . . 1 1 Largest Inventory Capacity 12 | 6 12 12 12 Average Capacity 9 | 5 8 12 12 Most Carried 9 | 4 7 9 9 Average Carried 5 | 2 5 7 6 Final Capacity 12 | 6 12 12 12 Final Carried 9 | 4 7 9 4 Class Distribution -------------------- 100% | Mutant Dominant Class ---------------- Mutant | -10/Materials Mutant | -10/Mines Mutant | -9/Materials Resources | -11 -10 -10 -9 ----------- Run | Scr Mat Min Mat Matter Collected 315 | 217 20 36 42 Remotely 20 | . 20 . . Salvage Created 158 | . 38 36 84 Parts 12 | . 2 5 5 Haulers Intercepted . | . . . . Recyclers Shooed . | . . . . Parts Field Recycled . | . . . . Retrieved Matter . | . . . . Parts Self-Destructed . | . . . . Prevented . | . . . . Kills | -11 -10 -10 -9 ------- Run | Scr Mat Min Mat Combat Hostiles Destroyed 8 | . 3 3 2 Guns 3 | . 1 1 1 AOE 5 | . 2 2 1 Classes Destroyed 3 | . 2 . 1 Watcher 1 | . 1 . . Swarmer 6 | . 3 3 . Grunt 2 | . . . 2 Best Kill Streak 3 | . 3 3 1 Combat Bots Only 3 | . 2 3 1 Max Kills in Single Turn 3 | . 3 2 1 Gunslinging . | . . . . Exploded 2 | . 2 2 1 Melee . | . . . . Uniques/NPCs Destroyed . | . . . . Combat | -11 -10 -10 -9 -------- Run | Scr Mat Min Mat Damage Taken 1253 | . 75 95 1083 Core 438 | . 16 18 404 Absorbed by Shields . | . . . . Core Remaining (%) 93 | 100 . 86 . Volleys Fired 28 | . 8 5 15 Largest 2 | . 2 2 2 Hottest 70 | . 60 60 70 Shots Fired 48 | . 16 10 22 Gun 47 | . 16 10 21 Cannon . | . . . . Launcher 1 | . . . 1 Special . | . . . . Kinetic 26 | . 8 5 13 Thermal 6 | . . . 6 Explosive 1 | . . . 1 Electromagnetic 15 | . 8 5 2 Robot Hit Streak 5 | . 3 4 5 Robot Miss Streak 5 | . 4 5 1 Penetration Max . | . . . . Secondary Targets 1 | . . . 1 Max Gunslinging Chain 1 | . . . 1 Shots Hit Robots 26 | . 7 3 16 Core Hits 17 | . 5 3 9 Critical Hits . | . . . . Critical Kills . | . . . . Critical Parts Destroyed . | . . . . Melee Attacks 1 | . . . 1 Impact . | . . . . Slashing . | . . . . Piercing . | . . . . Sneak Attacks . | . . . . Combat Hostiles . | . . . . Follow-up Attacks . | . . . . Damage Inflicted 1009 | . 636 141 232 Guns 283 | . 69 31 183 Cannons . | . . . . Explosions 726 | . 567 110 49 Melee . | . . . . Ramming . | . . . . Kinetic 110 | . 15 . 95 Thermal 185 | . . 110 75 Explosive 616 | . 567 . 49 Electromagnetic 98 | . 54 31 13 Impact . | . . . . Slashing . | . . . . Piercing . | . . . . Highest Corruption . | . . . . Average Corruption . | . . . . Corruption Purged . | . . . . Overload Shots . | . . . . Overflow Damage 185 | . 185 . . Projectiles . | . . . . Explosions 185 | . 185 . . Melee . | . . . . Knockbacks . | . . . . Impact . | . . . . Kinetic . | . . . . Secondary . | . . . . Self-Inflicted Damage 21 | . . 21 . Shots 1 | . . 1 . Rammed . | . . . . Targets Rammed . | . . . . Kicked . | . . . . Crushed . | . . . . Highest Temperature 104 | . 20 52 104 Average Temperature 32 | . 15 24 43 Received Heat Transfer 492 | . . . 492 Siege Activations . | . . . . Robots Corrupted . | . . . . Combat Hostiles . | . . . . Parts Fried . | . . . . Impact Corruptions . | . . . . Robots Melted . | . . . . Combat Hostiles . | . . . . Parts Melted . | . . . . Heat Transferred 322 | . . 100 222 Parts Sabotaged . | . . . . Parts Stolen . | . . . . Parts Stripped . | . . . . Power Chain Reactions 1 | . . 1 . Missiles Intercepted . | . . . . Alert | -11 -10 -10 -9 ------- Run | Scr Mat Min Mat Peak Influence 142 | . 142 125 68 Initial 55 | . . 55 48 Average 41 | . 45 105 35 Maximum Alert Level . | . . . . Low Security (%) 100 | 100 100 100 100 Level 1 . | . . . . Level 2 . | . . . . Level 3 . | . . . . Level 4 . | . . . . Level 5 . | . . . . High Security . | . . . . Max Security . | . . . . Squads Dispatched 1 | . . . 1 Investigation . | . . . . Extermination . | . . . . Reinforcement 1 | . . . 1 Assault . | . . . . Garrison . | . . . . Intercept . | . . . . Construction Impeded . | . . . . Haulers Reinforced . | . . . . Stealth | -11 -10 -10 -9 --------- Run | Scr Mat Min Mat Distress Signals 3 | . 1 . 2 Communications Jammed . | . . . . Distress Signals . | . . . . Times Spotted 17 | . 7 3 7 Peak Tracking Total 6 | . 4 2 6 Tactical Retreats 1 | . 1 . . Traps | -11 -10 -10 -9 ------- Run | Scr Mat Min Mat Traps Triggered . | . . . . Indirectly . | . . . . Trap Hack Attempts . | . . . . Triggered . | . . . . Disarmed . | . . . . Reprogrammed . | . . . . Reused . | . . . . Traps Extracted . | . . . . Installed . | . . . . Triggered . | . . . . Machines | -11 -10 -10 -9 ---------- Run | Scr Mat Min Mat Machines Disabled 2 | . 2 . . Max in Single Turn 2 | . 2 . . Machines Sabotaged . | . . . . Garrisons Compromised . | . . . . Overloaded Fab Kills . | . . . . Fab Network Shutdowns . | . . . . Hacking | -11 -10 -10 -9 --------- Run | Scr Mat Min Mat Machines Accessed 2 | . 2 . . Terminals 1 | . 1 . . Fabricators . | . . . . Repair Stations 1 | . 1 . . Recycling Units . | . . . . Scanalyzers . | . . . . Garrison Access . | . . . . Total Hacks 3 | . 3 . . Successful 3 | . 3 . . Failed . | . . . . Catastrophic . | . . . . Database Lockouts . | . . . . Manual . | . . . . Terminals 2 | . 2 . . Fabricators . | . . . . Repair Stations 1 | . 1 . . Recycling Units . | . . . . Scanalyzers . | . . . . Garrison Access . | . . . . Terminal Hacks 2 | . 2 . . Locate Traps 1 | . 1 . . Zone Layout 1 | . 1 . . Fabricator Hacks . | . . . . Repair Station Hacks 1 | . 1 . . Scan Component 1 | . 1 . . Recycling Unit Hacks . | . . . . Scanalyzer . | . . . . Garrison Access Hacks . | . . . . Unauthorized Hacks . | . . . . Terminals . | . . . . Fabricators . | . . . . Repair Stations . | . . . . Recycling Units . | . . . . Scanalyzers . | . . . . Garrison Access . | . . . . Data Cores Recovered . | . . . . Used . | . . . . Hacking Detections 1 | . 1 . . Full Trace Events . | . . . . Feedback Events . | . . . . Feedback Blocked . | . . . . Robot Schematics Acquired . | . . . . Robots Built . | . . . . Matter . | . . . . Time . | . . . . Total Robot Build Rating . | . . . . Part Schematics Acquired . | . . . . Parts Built . | . . . . Matter . | . . . . Time . | . . . . Total Part Build Rating . | . . . . Parts Repaired . | . . . . Time . | . . . . Parts Recycled . | . . . . Recycled Matter . | . . . . Retrieved Matter . | . . . . Retrieved Components . | . . . . Parts Scanalyzed . | . . . . Part Schematics Acquired . | . . . . Parts Damaged . | . . . . Bothacking | -11 -10 -10 -9 ------------ Run | Scr Mat Min Mat Used RIF Installer . | . . . . Robots Hacked 1 | . . . 1 Non-combat . | . . . . Combat 1 | . . . 1 Robot Hacks Applied 1 | . . . 1 parse_system 1 | . . . 1 Relay Couplers Released . | . . . . Robots Rewired . | . . . . Allies Hacked . | . . . . Hacks Repelled . | . . . . Allies | -11 -10 -10 -9 -------- Run | Scr Mat Min Mat Total Allies . | . . . . Largest Group . | . . . . Highest-Rated Group . | . . . . Highest-Rated Ally . | . . . . Total Orders . | . . . . Ally Attacks . | . . . . Total Damage . | . . . . Kills . | . . . . Allies Corrupted . | . . . . Allies Melted . | . . . . Intel | -11 -10 -10 -9 ------- Run | Scr Mat Min Mat Robot Analysis Total . | . . . . Derelict Logs Recovered . | . . . . Drone Launches . | . . . . Drone Recoveries . | . . . . Exploration | -11 -10 -10 -9 ------------- Run | Scr Mat Min Mat Turns Passed 348 | 58 157 36 97 Spaces Moved 230 | 47 145 18 20 Core 4 | 4 . . . Treads 3 | . . . 3 Legs . | . . . . Wheels 223 | 43 145 18 17 Hover . | . . . . Flight . | . . . . Fastest Speed 50 | 50 80 90 90 Average Speed 85 | 80 84 90 103 Slowest Speed 180 | 100 90 90 180 Overloaded Moves . | . . . . Propulsion Burnouts . | . . . . Robots Hopped . | . . . . Cave-ins Triggered . | . . . . Exploration Rate (%) 13 | 3 36 8 6 Regions Visited 3 Branch Regions 1 Pre-discovered Areas . | . . . . Known Exits Taken . | . . . . Unknown Exits Taken 3 | 1 1 1 . Scrap Searched . | . . . . Spaces Dug . | . . . . Terrain Destroyed 73 | . 61 5 7 Melee . | . . . . Projectile . | . . . . AOE 73 | . 61 5 7 Terrain Rammed . | . . . . Walls Destroyed . | . . . . Machines Disabled . | . . . . Actions | -11 -10 -10 -9 --------- Run | Scr Mat Min Mat Total 331 | 64 164 28 75 Wait 47 | 6 6 2 33 Move 227 | 46 144 17 20 Hop . | . . . . Pick Up 9 | 5 3 1 . Fast Attach 8 | 6 2 . . Attach 6 | . . 1 5 Detach 1 | . . 1 . Swap 2 | . . 1 1 Drop 2 | 1 1 . . Fire 28 | . 8 5 15 Melee 1 | . . . 1 Ram . | . . . . Kick . | . . . . Crush . | . . . . Escape Stasis . | . . . . Rewire . | . . . . Trap . | . . . . Miscellaneous . | . . . . Route ------- -11/Scrapyard -10/Materials -10/Mines -9/Materials History --------- Turn | Location | Event 33 | -11/Scrapyard | Discovered new exit (range 16) 59 | -11/Scrapyard | Entered Materials 209 | -10/Materials | Discovered new exit (range 8) 216 | -10/Materials | Entered Mines 216 | -10/Mines | Discovered new exit (range 13) 252 | -10/Mines | Entered Materials 252 | -9/Materials | Evolved 2 slots: Propulsion x1, Utility x1 335 | -9/Materials | Core integrity fell below 50% 339 | -9/Materials | Build established: Mutant 346 | -9/Materials | Core integrity fell below 20% 349 | -9/Materials | Destroyed by G-34 Mercenary with Small Laser Last Messages --------------- Grenade Launcher destroyed. EM Pulse Gun destroyed. Wheel destroyed. G-34 Mercenary destroyed. Switching to secondary target: G-47 Trooper. Lgt. Ion Engine destroyed. Lgt. Assault Rifle destroyed. R-06 Scavenger collects Heat Sink. Med. Laser destroyed. Lgt. Assault Rifle destroyed. Wheel destroyed. Jacked Y-45 Defender... >>parse_system Reading system data... Acquired 42 matter. W-16 Scout sends out distress signal. Datajack destroyed. G-47 Trooper destroyed. Lgt. Treads destroyed. K-01 Serf collects debris. Map ----- +----------------------------------------------------+ | ?????????????????????????????????????? | | ?????????????????????????????????????? | | ?????????????????????????????????????? | | ?????????????????????????????????????? | | ?????????????????????????????????????? | | ?????????????????????????????????????? | | ?????????????????????????????????????? | | ?????????????????????????????????????? | | ?????????????????????????????????????? | | ?????????????????????????????????????? | | ?????????????????????????????????????? | | ?????????????????????????????????????? | | ?????????????????? ????????????????? | | ?????????????????? "???????????????? | | ?????????????????? "??????????????? | | ???????????????### ""?? ?????????? | | ???????????????# """ ????????? | | ???????????????# """ ???????? | | ???????????????# " ???????? | | ??????########## ??????? | | ??????# # ??????? | | ??????# # #?????? | | ??????# # #?????? | | ??????# *# +?????? | | ??????# * #k #?????? | | ??????# %@ /g #?????? | | ??????# Y# wg k #?????? | | ??????# # ##?????????? | | ??????# # #??????????? | | ??????########## #??????????? | | ?????????????# #????????? | | ?????????????# %* ?????? | | ?????????????# = ????? | | ?????????????######## ?????? | | ?????????????????????## # ## ?????? | | ???????????????????????### ##????????? | | ??????????????????????????? ????????? | | ???????????????????????????? ????????? | | ?????????????????????????????????????? | | ?????????????????????????????????????? | | ?????????????????????????????????????? | | ?????????????????????????????????????? | | ?????????????????????????????????????? | | ?????????????????????????????????????? | | ?????????????????????????????????????? | | ?????????????????????????????????????? | | ?????????????????????????????????????? | | ?????????????????????????????????????? | | ?????????????????????????????????????? | | ?????????????????????????????????????? | +----------------------------------------------------+ Best States ------------- Heat Dissipation 28 Energy Generation 10 Energy Capacity 250 Matter Stores 269 Matter Capacity 300 Sight Range 16 Terrain Scan Density 10 Evasion (%) 44 Recoil Reduction 1 Item Schematics ----------------- None Robot Schematics ------------------ None Fabricated ------------ Nothing Alien Tech Used ----------------- None Achievements -------------- None Challenges ------------ None Game ------ Seed ChromaticFissionLog Manual? 0 Play Time 00:09:59 Cumulative 1.7 hours Start 2021.05.15 @ 13:32:51 End 2021.06.21 @ 20:49:42 Sessions 3 Manual Loads 0 Difficulty Rogue Special Mode None Game No. 5 Rogue 5 Adventurer 0 Explorer 0 Win Type - Total 0 Types 0/0/0/0/0/0/0/0/0 Lore% 4 Gallery% 6 Achievement% 5 Wizard Run 0 Options --------- ASCII 0 Keyboard 1 Movement Numpad Keybinds 0 Fullscreen 2 Font 18/Smallcaps Map View 76x50 Tactical HUD 0 Map Filters NONE Filters NONE Steam 1 RUN: 925cd163-dd75-4f86-9e52-22e923a9aa4c